fUSD/lending_fUSD_20250904
["ID","MTS","AMOUNT","RATE_DAILY","PERIOD"]
[383542344,1756980662663,-500.0,0.0002219,2]
[383542345,1756980662672,-500.0,0.0002219,2]
[383542346,1756980662681,-300.0,0.0002219,2]
[383542347,1756980662691,-1021.0,0.00022191,2]
[383542348,1756980662701,-860.436966,0.00022191,2]
[383542349,1756980662710,-400.0,0.00022191,2]
[383542350,1756980662720,-325.11609879,0.00022191,2]
[383542351,1756980662729,-400.0,0.00022191,2]
[383542352,1756980662739,-738.27739705,0.00022191,2]
[383542353,1756980662748,-407.56694258,0.00022191,2]
[383542354,1756980662757,-406.79892089,0.00022191,2]
[383542355,1756980662767,-400.0,0.00022191,2]
[383542356,1756980662776,-400.0,0.00022191,2]
[383542357,1756980662785,-400.0,0.00022191,2]
[383542358,1756980662795,-400.0,0.00022191,2]
[383542359,1756980662803,-200.0,0.00022191,2]
[383542360,1756980662813,-400.0,0.00022191,2]
[383542361,1756980662822,-400.0,0.00022191,2]
[383542362,1756980662831,-400.0,0.00022191,2]
[383542363,1756980662840,-400.0,0.00022191,2]
[383542364,1756980662849,-400.0,0.00022191,2]
[383542365,1756980662858,-400.0,0.00022191,2]
[383542366,1756980662867,-400.0,0.00022191,2]
[383542367,1756980662877,-400.0,0.00022191,2]
[383542368,1756980662886,-400.0,0.00022191,2]
[383542369,1756980662895,-400.0,0.00022191,2]
[383542370,1756980662904,-430.36,0.00022191,2]
[383542371,1756980662914,-217.84543378,0.00022191,2]
[383542372,1756980662923,-400.0,0.00022191,2]
[383542373,1756980662932,-400.0,0.00022191,2]
[383542374,1756980662941,-400.0,0.00022191,2]
[383542375,1756980662951,-214.20447398,0.00022191,2]
[383542376,1756980662960,-400.0,0.00022191,2]
[383542377,1756980662969,-400.0,0.00022191,2]
[383542378,1756980662978,-400.0,0.00022191,2]
[383542379,1756980662987,-400.0,0.00022191,2]
[383542380,1756980662997,-400.0,0.00022191,2]
[383542381,1756980663191,-247.88027143,0.00022191,2]
[383542382,1756980663202,-408.27366808,0.00022191,2]
[383542383,1756980663212,-400.0,0.00022191,2]
[383542384,1756980663222,-400.0,0.00022191,2]
[383542385,1756980663232,-383.65377139,0.00022191,2]
[383542386,1756980663242,-400.0,0.00022191,2]
[383542387,1756980663251,-353.06574423,0.00022191,2]
[383542388,1756980664551,-151.0,0.00020408,2]
[383542389,1756980664561,-181.09631999,0.00021917,2]
[383542390,1756980664582,-218.90368001,0.00021917,2]
[383542391,1756980664591,-400.0,0.00021917,2]
[383542392,1756980664600,-400.0,0.00021917,2]
[383542393,1756980664610,-400.0,0.00021917,2]
[383542394,1756980664620,-622.09,0.000221,2]
[383542395,1756980664630,-46.93425577,0.00022191,2]
[383542396,1756980664639,-400.0,0.00022191,2]
[383542397,1756980664649,-400.0,0.00022191,2]
[383542398,1756980664659,-400.0,0.00022191,2]
[383542399,1756980664668,-400.0,0.00022191,2]
[383542400,1756980664679,-400.0,0.00022191,2]
[383542401,1756980664689,-263.5326159,0.00022191,2]
[383542402,1756980664846,-400.0,0.00021917,2]
[383542403,1756980664855,-400.0,0.00021917,2]
[383542404,1756980664865,-136.4673841,0.00022191,2]
[383542405,1756980664874,-400.0,0.00022191,2]
[383542406,1756980664883,-404.45853916,0.00022191,2]
[383542407,1756980664893,-400.0,0.00022191,2]
[383542408,1756980664902,-400.0,0.00022191,2]
[383542409,1756980664911,-400.0,0.00022191,2]
[383542410,1756980664921,-812.24,0.00022191,2]
[383542411,1756980664932,-400.0,0.00022191,2]
[383542412,1756980664942,-400.0,0.00022191,2]
[383542413,1756980664952,-400.0,0.00022191,2]
[383542414,1756980664962,-400.0,0.00022191,2]
[383542415,1756980664971,-484.79905581,0.00022191,2]
[383542416,1756980664980,-400.0,0.00022191,2]
[383542417,1756980665180,-400.0,0.00022191,2]
[383542418,1756980665190,-400.0,0.00022191,2]
[383542419,1756980665201,-400.0,0.00022191,2]
[383542420,1756980665210,-400.0,0.00022191,2]
[383542421,1756980665220,-400.0,0.00022191,2]
[383542422,1756980665230,-400.0,0.00022191,2]
[383542423,1756980665239,-400.0,0.00022191,2]
[383542424,1756980665248,-405.91194986,0.00022191,2]
[383542425,1756980665257,-400.0,0.00022191,2]
[383542426,1756980665267,-410.24360727,0.00022191,2]
[383542427,1756980665276,-400.0,0.00022191,2]
[383542428,1756980665285,-400.0,0.00022191,2]
[383542429,1756980665295,-400.0,0.00022191,2]
[383542430,1756980665304,-400.0,0.00022191,2]
[383542431,1756980665313,-400.0,0.00022191,2]
[383542432,1756980665323,-332.51992941,0.00022191,2]
[383542433,1756980675845,249.84,0.00013699,2]
[383542435,1756980727165,500.0,0.00022206,120]
[383542436,1756980727319,500.0,0.00020208,120]
[383542437,1756980727480,500.0,0.0002042,120]
[383542438,1756980825299,500.0,0.00030135,120]
[383542439,1756980829730,1973.699103,0.00030135,120]
[383542440,1756980832941,500.0,0.00030135,120]
[383542441,1756980837969,500.0,0.00030135,120]
[383542442,1756980845278,500.0,0.00022206,120]
[383542443,1756980845433,500.0,0.0002019,120]
[383542444,1756980845577,500.0,0.00020203,120]
[383542445,1756980919056,1444.0,0.00030136,120]
[383542446,1756980964237,500.0,0.00022206,120]
[383542447,1756980964461,500.0,0.0002019,120]
[383542448,1756980964569,500.0,0.00020203,120]
[383542450,1756981067183,400.0,0.0003013,120]
[383542451,1756981086247,500.0,0.00022206,120]
[383542452,1756981086441,500.0,0.0002019,120]
[383542453,1756981086644,500.0,0.00020214,120]
[383542457,1756981211555,500.0,0.00022206,120]
[383542458,1756981211718,500.0,0.00020188,120]
[383542459,1756981211864,500.0,0.00020188,120]
[383542460,1756981219329,1000.0,8.2e-07,120]
[383542461,1756981228862,150.0,0.00030137,120]
[383542462,1756981228955,2000.0,8.2e-07,120]
[383542463,1756981231705,500.0,0.000301,120]
[383542464,1756981240865,2000.0,8.2e-07,120]
[383542465,1756981247670,468.0,0.000301,120]
[383542466,1756981247712,2000.0,8.2e-07,120]
[383542467,1756981258369,2000.0,8.2e-07,120]
[383542468,1756981265744,2000.0,8.2e-07,120]
[383542469,1756981266021,1051.6,0.00025559,120]
[383542470,1756981266405,1051.6,0.00028115,120]
[383542471,1756981272740,2000.0,8.2e-07,120]
[383542473,1756981280855,2000.0,8.2e-07,120]
[383542476,1756981326942,500.0,0.00022206,120]
[383542477,1756981327116,500.0,0.00020188,120]
[383542478,1756981327260,500.0,0.00020188,120]
[383542479,1756981333243,2000.0,8.2e-07,120]
[383542480,1756981339551,2000.0,8.2e-07,120]
[383542482,1756981349879,2000.0,8.2e-07,120]
[383542483,1756981357010,2000.0,8.2e-07,120]
[383542484,1756981364663,2000.0,8.2e-07,120]
[383542486,1756981374208,2000.0,8.2e-07,120]
[383542487,1756981383044,2000.0,8.2e-07,120]
[383542488,1756981393555,2000.0,8.2e-07,120]
[383542490,1756981398299,500.0,0.00030135,120]
[383542491,1756981401369,2000.0,8.2e-07,120]
[383542492,1756981403438,500.0,0.00030135,120]
[383542493,1756981408452,500.0,0.00030135,120]
[383542494,1756981408897,2000.0,8.2e-07,120]
[383542497,1756981417441,2000.0,8.2e-07,120]
[383542499,1756981426022,2000.0,8.2e-07,120]
[383542500,1756981434350,2000.0,8.2e-07,120]
[383542502,1756981441422,2000.0,8.2e-07,120]
[383542503,1756981449788,2000.0,8.2e-07,120]
[383542504,1756981450009,500.0,0.00022206,120]
[383542505,1756981450217,500.0,0.00020187,120]
[383542506,1756981450957,500.0,0.00020188,120]
[383542507,1756981456661,2000.0,8.2e-07,120]
[383542508,1756981465039,2000.0,8.2e-07,120]
[383542509,1756981474217,2000.0,8.2e-07,120]
[383542510,1756981476989,1000.0,0.0003,120]
[383542511,1756981494055,1000.0,0.0003,120]
[383542512,1756981520849,5720.0,9e-05,2]
[383542513,1756981520876,856.47263944,9e-05,2]
[383542514,1756981537837,4863.52736056,9e-05,2]
[383542515,1756981537862,3124.58246524,9e-05,2]
[383542517,1756981548740,17920.59574705,0.0001995,15]
[383542520,1756981564135,1989.04569844,8e-05,2]
[383542521,1756981614311,-300.0,0.00019864,2]
[383542522,1756981614338,-300.0,0.00019865,2]
[383542523,1756981614365,-500.0,0.00019865,3]
[383542524,1756981614389,-16954.38482311,0.00019865,2]
[383542525,1756981614414,-500.0,0.00019908,2]
[383542526,1756981614440,-5445.61517689,0.0001995,15]
[383542528,1756981676597,1747.38683733,0.000181,2]
[383542529,1756981680856,1000.0,8.2e-07,120]
[383542530,1756981681942,500.0,0.00021945,120]
[383542531,1756981682132,500.0,0.00019952,120]
[383542532,1756981682322,500.0,0.00020056,120]
[383542534,1756981684246,263.93,0.00013699,2]
[383542536,1756981710116,1168.35885607,0.00018,2]
[383542542,1756981740971,2000.0,8.2e-07,120]
[383542544,1756981749404,2000.0,8.2e-07,120]
[383542547,1756981760245,2000.0,8.2e-07,120]
[383542549,1756981768786,2000.0,8.2e-07,120]
[383542550,1756981775189,2000.0,8.2e-07,120]
[383542552,1756981790966,2000.0,8.2e-07,120]
[383542553,1756981796708,2000.0,8.2e-07,120]
[383542554,1756981803444,500.0,0.00021945,120]
[383542555,1756981803631,500.0,0.00019952,120]
[383542556,1756981803850,500.0,0.00020056,120]
[383542558,1756981815509,1339.537367,0.00030137,120]
[383542559,1756981818139,2000.0,8.2e-07,120]
[383542560,1756981827454,2000.0,8.2e-07,120]
[383542563,1756981831383,-70.62965073,0.0001995,15]
[383542564,1756981831394,-300.0,0.00019951,2]
[383542565,1756981831403,-500.0,0.00019951,2]
[383542566,1756981831412,-250.0,0.00019952,2]
[383542567,1756981831422,-500.0,0.00019955,3]
[383542568,1756981831431,-300.0,0.00019958,2]
[383542569,1756981831441,-500.0,0.00019983,2]
[383542570,1756981831450,-315.88817427,0.0002,2]
[383542571,1756981831459,-250.0,0.00020056,2]
[383542572,1756981831470,-1200.0,0.00020187,2]
[383542573,1756981831479,-263.93,0.00020187,2]
[383542574,1756981831488,-150.99,0.00020188,2]
[383542575,1756981831497,-999.99,0.00020188,2]
[383542576,1756981831507,-1531.11,0.00020188,2]
[383542577,1756981831516,-3538.0,0.00020188,2]
[383542578,1756981831526,-201.93286099,0.00020259,2]
[383542579,1756981831535,-267.46074303,0.00020259,2]
[383542580,1756981831545,-1000.0,0.00020271,2]
[383542581,1756981831554,-160.0,0.00020348,7]
[383542582,1756981831564,-166.0,0.00020398,2]
[383542583,1756981831573,-587.0,0.000204,2]
[383542584,1756981831583,-1224.0,0.00020404,2]
[383542585,1756981831592,-1224.0,0.00020404,2]
[383542586,1756981831601,-1224.0,0.00020404,2]
[383542587,1756981831611,-1224.0,0.00020404,2]
[383542588,1756981831620,-1224.0,0.00020404,2]
[383542589,1756981831630,-1051.6,0.00020448,2]
[383542590,1756981831643,-666.74,0.00020464,2]
[383542591,1756981831655,-289.24003376,0.00020497,2]
[383542612,1756981831901,-695.39793187,0.00020497,2]
[383542615,1756981831911,-151.0,0.00020497,2]
[383542617,1756981831920,-160.0,0.00020497,2]
[383542619,1756981831929,-200.0,0.00020497,2]
[383542622,1756981831938,-369.88685058,0.00020497,2]
[383542625,1756981831947,-417.31,0.0002051,2]
[383542628,1756981831957,-157.23,0.00020519,2]
[383542629,1756981831966,-164.52,0.00020526,2]
[383542631,1756981831976,-250.0,0.0002069,2]
[383542633,1756981831985,-2600.0,0.00020722,2]
[383542635,1756981831994,-1000.0,0.00020722,2]
[383542637,1756981832004,-500.0,0.00020722,2]
[383542638,1756981832013,-1367.7431248,0.00020828,2]
[383542640,1756981832022,-268.41,0.00020998,2]
[383542642,1756981832032,-665.20379647,0.00021,7]
[383542643,1756981832042,-61832.68675758,0.00021,2]
[383542644,1756981832056,-266.46877186,0.00021,2]
[383542645,1756981832069,-690.92563349,0.00021,2]
[383542646,1756981832120,-554.16563802,0.00021,2]
[383542647,1756981832132,-22077.08163605,0.00021,2]
[383542648,1756981832143,-13628.30874628,0.00021,2]
[383542649,1756981832182,-501.64312512,0.00021,2]
[383542651,1756981834026,2000.0,8.2e-07,120]
[383542652,1756981837737,-11443.7210952,0.00021,2]
[383542653,1756981837761,-884.93,0.00021,2]
[383542659,1756981837893,-1289.35122835,0.00021,2]
[383542816,1756981839383,-590.70084419,0.00021,2]
[383542848,1756981839733,-1325.55447868,0.00021,2]
[383542850,1756981839784,-461.53505477,0.00021,2]
[383542901,1756981842462,-4473.41085203,0.00021,2]
[383542902,1756981842624,-400.0,0.00021,2]
[383542903,1756981842665,2000.0,8.2e-07,120]
[383543168,1756981845716,-328.46856,0.00021,2]
[383543179,1756981845822,-57.5319658,0.00021,2]
[383543189,1756981845907,-1589.24193754,0.00021,2]
[383543245,1756981850005,2000.0,8.2e-07,120]
[383543246,1756981858245,2000.0,8.2e-07,120]
[383543248,1756981926692,500.0,0.00022684,120]
[383543249,1756981926863,500.0,0.00020647,120]
[383543250,1756981927013,500.0,0.00020779,120]
[383543254,1756981996199,244.944911,0.00022,120]
[383543255,1756982002467,500.0,0.00030135,120]
[383543256,1756982006562,500.0,0.00030135,120]
[383543257,1756982011061,500.0,0.00030135,120]
[383543258,1756982026167,500.0,8.2e-07,120]
[383543259,1756982032377,500.0,8.2e-07,120]
[383543260,1756982038687,500.0,8.2e-07,120]
[383543261,1756982045576,500.0,8.2e-07,120]
[383543262,1756982045671,500.0,0.00022684,120]
[383543263,1756982045873,500.0,0.00020628,120]
[383543264,1756982046054,500.0,0.0002065,120]
[383543265,1756982053354,500.0,8.2e-07,120]
[383543266,1756982053682,302.48930522,0.00022,120]
[383543267,1756982059693,500.0,8.2e-07,120]
[383543268,1756982067877,500.0,8.2e-07,120]
[383543269,1756982075796,500.0,8.2e-07,120]
[383543270,1756982082551,500.0,8.2e-07,120]
[383543271,1756982091574,500.0,8.2e-07,120]
[383543272,1756982104329,500.0,8.2e-07,120]
[383543273,1756982116234,500.0,8.2e-07,120]
[383543275,1756982122939,500.0,8.2e-07,120]
[383543277,1756982131017,500.0,8.2e-07,120]
[383543278,1756982137209,500.0,8.2e-07,120]
[383543279,1756982145175,500.0,8.2e-07,120]
[383543281,1756982151740,500.0,8.2e-07,120]
[383543282,1756982157763,500.0,8.2e-07,120]
[383543283,1756982163984,500.0,8.2e-07,120]
[383543284,1756982164609,500.0,0.00022624,120]
[383543285,1756982164779,500.0,0.00020595,120]
[383543286,1756982164936,500.0,0.00020629,120]
[383543288,1756982169469,500.0,8.2e-07,120]
[383543289,1756982177497,500.0,8.2e-07,120]
[383543290,1756982184521,1179.36,0.00025503,120]
[383543291,1756982185136,1179.36,0.00028053,120]
[383543292,1756982185625,500.0,8.2e-07,120]
[383543294,1756982193165,500.0,8.2e-07,120]
[383543295,1756982200303,500.0,8.2e-07,120]
[383543296,1756982206495,500.0,8.2e-07,120]
[383543297,1756982212404,500.0,8.2e-07,120]
[383543299,1756982219662,500.0,8.2e-07,120]
[383543300,1756982226301,500.0,8.2e-07,120]
[383543302,1756982232152,500.0,8.2e-07,120]
[383543303,1756982238378,500.0,8.2e-07,120]
[383543304,1756982244723,500.0,8.2e-07,120]
[383543305,1756982251310,500.0,8.2e-07,120]
[383543307,1756982257910,500.0,8.2e-07,120]
[383543308,1756982269987,715.0,8.2e-07,120]
[383543310,1756982292585,2000.0,0.00022342,120]
[383543311,1756982292771,2000.0,0.0002032,120]
[383543312,1756982292953,2000.0,0.00020355,120]
[383543316,1756982329672,500.0,8.2e-07,120]
[383543317,1756982337378,500.0,8.2e-07,120]
[383543318,1756982345656,500.0,8.2e-07,120]
[383543322,1756982356078,153.74,0.00010148,2]
[383543324,1756982370561,500.0,8.2e-07,120]
[383543325,1756982376953,500.0,8.2e-07,120]
[383543326,1756982385191,500.0,8.2e-07,120]
[383543328,1756982405708,500.0,8.2e-07,120]
[383543329,1756982408397,2000.0,0.00016268,3]
[383543330,1756982411897,500.0,8.2e-07,120]
[383543332,1756982419914,500.0,8.2e-07,120]
[383543334,1756982427781,500.0,8.2e-07,120]
[383543335,1756982438868,500.0,8.2e-07,120]
[383543336,1756982446081,500.0,8.2e-07,120]
[383543338,1756982452707,500.0,8.2e-07,120]
[383543339,1756982460966,500.0,8.2e-07,120]
[383543340,1756982469755,500.0,8.2e-07,120]
[383543341,1756982475973,500.0,8.2e-07,120]
[383543342,1756982483312,500.0,8.2e-07,120]
[383543344,1756982490009,500.0,8.2e-07,120]
[383543345,1756982497089,500.0,8.2e-07,120]
[383543346,1756982503814,500.0,8.2e-07,120]
[383543347,1756982509545,500.0,8.2e-07,120]
[383543348,1756982516564,500.0,8.2e-07,120]
[383543349,1756982524735,500.0,8.2e-07,120]
[383543350,1756982529865,2000.0,0.0002202,120]
[383543351,1756982530022,2000.0,0.00020124,120]
[383543352,1756982530233,2000.0,0.00020204,120]
[383543353,1756982530773,500.0,8.2e-07,120]
[383543354,1756982538564,500.0,8.2e-07,120]
[383543355,1756982547324,500.0,8.2e-07,120]
[383543356,1756982553336,500.0,8.2e-07,120]
[383543357,1756982559344,500.0,8.2e-07,120]
[383543358,1756982564950,500.0,8.2e-07,120]
[383543359,1756982572936,500.0,8.2e-07,120]
[383543360,1756982595428,597.519511,0.00030135,120]
[383543361,1756982599226,561.92989,0.00030135,120]
[383543362,1756982602833,500.0,0.00030135,120]
[383543363,1756982619722,245.29,0.00013699,2]
[383543365,1756982655531,2000.0,0.0002202,120]
[383543366,1756982655706,2000.0,0.00020031,120]
[383543367,1756982655892,2000.0,0.00020083,120]
[383543383,1756982768270,2000.0,0.0002202,120]
[383543384,1756982768338,2000.0,0.00020025,120]
[383543385,1756982768415,2000.0,0.0002005,120]
[383543387,1756982793881,1792.09185737,0.00030137,120]
[383543403,1756982890570,2000.0,0.0002202,120]
[383543404,1756982890624,2000.0,0.00020021,120]
[383543405,1756982890696,2000.0,0.00020038,120]
[383543411,1756983013056,2000.0,0.0002202,120]
[383543412,1756983013289,2000.0,0.00020019,120]
[383543413,1756983013455,2000.0,0.00020022,120]
[383543416,1756983031607,-156.48,0.00020018,2]
[383543417,1756983031617,-250.0,0.00020019,2]
[383543418,1756983031626,-500.0,0.00020019,2]
[383543419,1756983031635,-300.0,0.0002002,2]
[383543420,1756983031644,-500.0,0.00020021,2]
[383543421,1756983031654,-500.0,0.00020022,2]
[383543422,1756983031663,-160.26200933,0.00020024,2]
[383543423,1756983031672,-300.0,0.00020028,2]
[383543424,1756983031681,-245.29,0.00020187,2]
[383543425,1756983031691,-666.0,0.00020238,3]
[383543426,1756983031700,-160.0,0.00020238,7]
[383543427,1756983031709,-150.99,0.00020238,2]
[383543428,1756983031718,-999.99,0.00020238,2]
[383543429,1756983031727,-250.0,0.00020272,2]
[383543430,1756983031737,-1181.0,0.0002028,2]
[383543431,1756983031746,-153.74,0.00020297,2]
[383543432,1756983031756,-577.0,0.000203,2]
[383543433,1756983031766,-1200.0,0.00020309,2]
[383543434,1756983031775,-333.37,0.0002031,2]
[383543435,1756983031784,-1181.0,0.00020344,2]
[383543436,1756983031794,-300.0,0.00020356,2]
[383543437,1756983031804,-300.0,0.00020356,2]
[383543438,1756983031813,-1181.0,0.00020357,2]
[383543439,1756983031822,-513.56,0.00020384,2]
[383543440,1756983031833,-267.46074303,0.0002039,2]
[383543441,1756983031843,-233.78386202,0.0002039,2]
[383543442,1756983031853,-1179.36,0.00020402,2]
[383543443,1756983031862,-318.96,0.00020441,2]
[383543444,1756983031871,-426.0,0.00020566,2]
[383543445,1756983031881,-250.0,0.00020567,2]
[383543446,1756983031890,-168.0,0.00020589,2]
[383543447,1756983031899,-1500.0,0.00020616,2]
[383543448,1756983031909,-164.54,0.00020619,2]
[383543449,1756983031919,-150.0,0.00020688,2]
[383543450,1756983031928,-150.0,0.00020688,2]
[383543451,1756983031937,-150.0,0.00020688,2]
[383543452,1756983031947,-231.359866,0.00020688,2]
[383543453,1756983031956,-150.0,0.00020688,2]
[383543454,1756983031966,-2400.0,0.00020722,2]
[383543455,1756983031975,-900.0,0.00020722,2]
[383543457,1756983031985,-500.0,0.00020722,2]
[383543459,1756983031995,-967.29245909,0.00020784,2]
[383543462,1756983032007,-628.51653336,0.00020784,2]
[383543478,1756983032308,-520.82613864,0.00020784,2]
[383543479,1756983032319,-1272.5,0.00020784,2]
[383543497,1756983045983,-333.03072,0.00020784,2]
[383543498,1756983046037,-24594.86426791,0.00020784,2]
[383543508,1756983131197,2000.0,0.00022284,120]
[383543509,1756983131337,2000.0,0.00020262,120]
[383543510,1756983131648,2000.0,0.00020305,120]
[383543511,1756983143085,1128.25,0.00025073,120]
[383543512,1756983143143,1128.25,0.00027581,120]
[383543513,1756983143328,1128.25,0.00030088,120]
[383543515,1756983199545,500.0,0.00030135,120]
[383543516,1756983241722,3428.80044734,0.000301,120]
[383543517,1756983245312,2000.0,0.00022013,120]
[383543518,1756983245471,2000.0,0.00020035,120]
[383543519,1756983245631,2000.0,0.00020174,120]
[383543520,1756983366091,2000.0,0.00022013,120]
[383543521,1756983366246,2000.0,0.00020023,120]
[383543522,1756983366398,2000.0,0.00020126,120]
[383543523,1756983381294,150.81,9.889e-05,2]
[383543525,1756983495156,228.49,0.00013699,2]
[383543527,1756983610155,2000.0,0.000173,2]
[383543529,1756983801645,500.0,0.00030136,120]
[383543536,1756984016756,-250.0,0.00019266,2]
[383543542,1756984101109,1231.24,0.00026339,120]
[383543543,1756984101342,-179.60691515,0.00019156,2]
[383543544,1756984101548,1231.24,0.00028734,120]
[383543545,1756984103459,-350.72400011,0.00019156,2]
[383543546,1756984107231,-231.62201359,0.00019156,2]
[383543547,1756984110827,-403.61325231,0.00019156,2]
[383543549,1756984132228,-200.0,0.00019094,2]
[383543551,1756984148393,-44.34,0.00019094,2]
[383543552,1756984148425,-45.64618116,0.00019156,2]
[383543553,1756984148438,-20.02763768,0.00019156,2]
[383543554,1756984148447,-24.31236232,0.00019214,2]
[383543555,1756984148475,-65.67381884,0.00019214,2]
[383543556,1756984162991,-10.98618116,0.00019214,2]
[383543557,1756984163003,-178.02763768,0.00019214,2]
[383543558,1756984163012,-10.98618116,0.00019244,2]
[383543561,1756984212178,2000.0,0.00019263,3]
[383543562,1756984212347,2000.0,0.00019323,3]
[383543564,1756984219591,-139.01381884,0.00019244,2]
[383543565,1756984219678,-21.0,0.00019253,2]
[383543566,1756984226901,-121.0,0.00019253,2]
[383543567,1756984226941,-158.0,0.00019253,2]
[383543569,1756984231896,-500.0,0.00019263,2]
[383543570,1756984231905,-193.0,0.00019281,2]
[383543571,1756984231915,-300.0,0.00019286,2]
[383543572,1756984231925,-300.0,0.00019318,2]
[383543573,1756984231936,-500.0,0.00019323,2]
[383543574,1756984231945,-193.0,0.0001938,2]
[383543575,1756984231954,-195.0,0.00019392,2]
[383543576,1756984231964,-300.0,0.00019446,2]
[383543577,1756984231974,-195.0,0.000195,2]
[383543578,1756984231983,-3886.3,0.0001954,2]
[383543579,1756984231992,-2000.0,0.00019553,3]
[383543580,1756984232002,-1200.0,0.00019594,2]
[383543581,1756984232011,-300.0,0.00019638,2]
[383543582,1756984232021,-160.0,0.00019759,7]
[383543583,1756984232030,-150.81,0.00019778,2]
[383543584,1756984232040,-11561.12683239,0.0002,2]
[383543585,1756984232050,-1014.78,0.00020012,2]
[383543586,1756984232059,-200.0,0.00020046,2]
[383543587,1756984232069,-486.90444798,0.00020059,2]
[383543588,1756984232082,-641.34555202,0.00020059,2]
[383543589,1756984232091,-232.75605006,0.00020125,2]
[383543590,1756984232128,-423.24394994,0.00020125,2]
[383543591,1756984232138,-166.44,0.00020125,2]
[383543592,1756984232148,-79.15931206,0.00020187,2]
[383543673,1756984237743,-149.33068794,0.00020187,2]
[383543675,1756984237753,-726.2,0.0002019,2]
[383543677,1756984237763,-315.34,0.00020192,2]
[383543679,1756984237773,-132.40124931,0.00020195,2]
[383543681,1756984237785,-17.59875069,0.00020195,2]
[383543683,1756984237794,-150.0,0.00020195,2]
[383543685,1756984237804,-150.0,0.00020195,2]
[383543687,1756984237814,-150.0,0.00020195,2]
[383543689,1756984237823,-590.0,0.000202,2]
[383543691,1756984237832,-138.12761975,0.0002024,2]
[383543704,1756984237951,-55.23244944,0.0002024,2]
[383543706,1756984237960,-322.6107,0.0002024,2]
[383543708,1756984237971,-160.0,0.0002024,2]
[383543710,1756984237980,-151.0,0.0002024,2]
[383543712,1756984237989,-277.62221726,0.0002024,2]
[383543714,1756984237999,-695.39793187,0.0002024,2]
[383543716,1756984238009,-267.46074303,0.0002024,2]
[383543718,1756984238018,-151.0,0.0002024,2]
[383543720,1756984238027,-151.0,0.0002024,2]
[383543722,1756984238036,-151.0,0.0002024,2]
[383543724,1756984238046,-428.45,0.00020245,2]
[383543726,1756984238056,-1602.85,0.00020342,2]
[383543728,1756984238065,-801.54,0.00020342,2]
[383543730,1756984238076,-470.45,0.00020342,2]
[383543732,1756984238085,-470.45,0.00020342,2]
[383543734,1756984238095,-178.53201534,0.00020342,2]
[383543736,1756984238107,-291.91798466,0.00020342,2]
[383543738,1756984238117,-470.45,0.00020342,2]
[383543740,1756984238126,-940.9,0.00020342,2]
[383543742,1756984238137,-910.45,0.00020342,2]
[383543744,1756984238146,-940.2,0.00020342,2]
[383543746,1756984238156,-465.17,0.000205,2]
[383543748,1756984238165,-8906.31163185,0.00020501,2]